[Event "January 2 Late 2024"]
[Site "https://www.chess.com"]
[Date "2024.01.02"]
[Round "1"]
[White "Balla, Tamas-Kristof"]
[Black "Anton Guijarro, David"]
[Result "0-1"]
[Board "32"]
[TimeControl "180+1"]
[WhiteFideId "1208497"]
[BlackFideId "2285525"]
[WhiteElo "2496"]
[BlackElo "2972"]
[WhiteTeam "ROU"]
[BlackTeam "ESP"]
[WhiteClock "0:00:05"]
[BlackClock "0:00:12"]

1. e4 {[%clk 0:03:00]}  c5 {[%clk 0:02:59]} 2. c3 {[%clk 0:03:01]}  Nf6 {[%clk 0:02:57]} 3. e5 {[%clk 0:03:01]}  Nd5 {[%clk 0:02:57]} 4. d4 {[%clk 0:03:01]}  cxd4 {[%clk 0:02:58]} 5. Nf3 {[%clk 0:03:01]}  d6 {[%clk 0:02:58]} 6. cxd4 {[%clk 0:03:02]}  Nc6 {[%clk 0:02:53]} 7. Bc4 {[%clk 0:03:02]}  Nb6 {[%clk 0:02:53]} 8. Bb5 {[%clk 0:03:02]}  dxe5 {[%clk 0:02:50]} 9. Nxe5 {[%clk 0:03:03]}  Bd7 {[%clk 0:02:50]} 10. Nxd7 {[%clk 0:03:03]}  Qxd7 {[%clk 0:02:51]} 11. Nc3 {[%clk 0:03:04]}  e6 {[%clk 0:02:50]} 12. O-O {[%clk 0:03:04]}  Be7 {[%clk 0:02:43]} 13. Be3 {[%clk 0:02:47]}  O-O {[%clk 0:02:39]} 14. Qg4 {[%clk 0:02:47]}  Rfd8 {[%clk 0:02:26]} 15. Rad1 {[%clk 0:02:37]}  Nd5 {[%clk 0:02:25]} 16. Bd3 {[%clk 0:02:06]}  Rac8 {[%clk 0:02:24]} 17. Bb1 {[%clk 0:01:50]}  Nf6 {[%clk 0:02:16]} 18. Qh3 {[%clk 0:01:44]}  Nb4 {[%clk 0:02:16]} 19. Bg5 {[%clk 0:01:41]}  g6 {[%clk 0:02:15]} 20. Qh4 {[%clk 0:01:17]}  Nfd5 {[%clk 0:02:13]} 21. Ne4 {[%clk 0:01:10]}  Bxg5 {[%clk 0:01:33]} 22. Qxg5 {[%clk 0:00:58]}  Qe7 {[%clk 0:01:32]} 23. Qh6 {[%clk 0:00:58]}  f6 {[%clk 0:01:31]} 24. a3 {[%clk 0:00:57]}  Nc6 {[%clk 0:01:30]} 25. Rfe1 {[%clk 0:00:56]}  Qg7 {[%clk 0:01:28]} 26. Qh3 {[%clk 0:00:55]}  f5 {[%clk 0:01:17]} 27. Ng5 {[%clk 0:00:42]}  Nf4 {[%clk 0:00:59]} 28. Qe3 {[%clk 0:00:40]}  Nxd4 {[%clk 0:00:43]} 29. g3 {[%clk 0:00:22]}  Nfe2+ {[%clk 0:00:41]} 30. Rxe2 {[%clk 0:00:21]}  Nxe2+ {[%clk 0:00:42]} 31. Qxe2 {[%clk 0:00:21]}  Rxd1+ {[%clk 0:00:40]} 32. Qxd1 {[%clk 0:00:22]}  Qxb2 {[%clk 0:00:40]} 33. Qd7 {[%clk 0:00:20]}  Qc1+ {[%clk 0:00:40]} 34. Kg2 {[%clk 0:00:18]}  Qc6+ {[%clk 0:00:40]} 35. Qxc6 {[%clk 0:00:18]}  Rxc6 {[%clk 0:00:40]} 36. Ba2 {[%clk 0:00:19]}  Ra6 {[%clk 0:00:40]} 37. Bxe6+ {[%clk 0:00:16]}  Kg7 {[%clk 0:00:39]} 38. Bd5 {[%clk 0:00:17]}  b6 {[%clk 0:00:34]} 39. Ne6+ {[%clk 0:00:14]}  Kf6 {[%clk 0:00:33]} 40. Nf8 {[%clk 0:00:14]}  h6 {[%clk 0:00:21]} 41. Nd7+ {[%clk 0:00:14]}  Ke7 {[%clk 0:00:22]} 42. Ne5 {[%clk 0:00:14]}  Kd6 {[%clk 0:00:22]} 43. Bc4 {[%clk 0:00:14]}  Rxa3 {[%clk 0:00:19]} 44. Nxg6 {[%clk 0:00:14]}  Kc5 {[%clk 0:00:18]} 45. Be2 {[%clk 0:00:14]}  b5 {[%clk 0:00:19]} 46. Nh4 {[%clk 0:00:14]}  b4 {[%clk 0:00:17]} 47. Nxf5 {[%clk 0:00:15]}  b3 {[%clk 0:00:18]} 48. Bd3 {[%clk 0:00:15]}  b2 {[%clk 0:00:18]} 49. Bc2 {[%clk 0:00:12]}  Rc3 {[%clk 0:00:17]} 50. Be4 {[%clk 0:00:11]}  a5 {[%clk 0:00:17]} 51. Ne3 {[%clk 0:00:09]}  Rc1 {[%clk 0:00:12]} 52. f4 {[%clk 0:00:09]}  a4 {[%clk 0:00:12]} 53. f5 {[%clk 0:00:09]}  b1=Q {[%clk 0:00:10]} 54. Bxb1 {[%clk 0:00:09]}  Rxb1 {[%clk 0:00:11]} 55. f6 {[%clk 0:00:09]}  a3 {[%clk 0:00:11]} 56. f7 {[%clk 0:00:09]}  Rb8 {[%clk 0:00:11]} 57. Nc2 {[%clk 0:00:09]}  a2 {[%clk 0:00:12]} 58. Kf3 {[%clk 0:00:09]}  Rf8 {[%clk 0:00:12]} 59. Ke3 {[%clk 0:00:08]}  Rxf7 {[%clk 0:00:12]} 60. Nd4 {[%clk 0:00:09]}  Kc4 {[%clk 0:00:12]} 61. Nc2 {[%clk 0:00:08]}  Kc3 {[%clk 0:00:12]} 62. Nd4 {[%clk 0:00:05]}  Re7+ {[%clk 0:00:12]} 0-1

[Event "January 2 Late 2024"]
[Site "https://www.chess.com"]
[Date "2024.01.02"]
[Round "1"]
[White "Bok, Benjamin"]
[Black "Unuk, Laura"]
[Result "1-0"]
[Board "35"]
[TimeControl "180+1"]
[WhiteFideId "1017063"]
[BlackFideId "14609215"]
[WhiteElo "2954"]
[BlackElo "2495"]
[WhiteTeam "NED"]
[BlackTeam "SLO"]
[WhiteClock "0:00:14"]
[BlackClock "0:00:03"]

1. d4 {[%clk 0:03:00]}  Nf6 {[%clk 0:02:55]} 2. c4 {[%clk 0:03:01]}  c5 {[%clk 0:02:55]} 3. Nf3 {[%clk 0:03:00]}  cxd4 {[%clk 0:02:55]} 4. Nxd4 {[%clk 0:03:01]}  g6 {[%clk 0:02:55]} 5. g3 {[%clk 0:03:00]}  Bg7 {[%clk 0:02:56]} 6. Bg2 {[%clk 0:03:00]}  O-O {[%clk 0:02:57]} 7. Nc3 {[%clk 0:03:00]}  Nc6 {[%clk 0:02:57]} 8. O-O {[%clk 0:03:00]}  Nxd4 {[%clk 0:02:57]} 9. Qxd4 {[%clk 0:03:01]}  d6 {[%clk 0:02:57]} 10. Qd3 {[%clk 0:03:02]}  Bf5 {[%clk 0:02:56]} 11. e4 {[%clk 0:03:01]}  Bd7 {[%clk 0:02:57]} 12. h3 {[%clk 0:02:58]}  Rc8 {[%clk 0:02:56]} 13. Bd2 {[%clk 0:02:56]}  Bc6 {[%clk 0:02:56]} 14. Rac1 {[%clk 0:02:53]}  Nd7 {[%clk 0:02:55]} 15. b3 {[%clk 0:02:53]}  a6 {[%clk 0:02:55]} 16. Rfd1 {[%clk 0:02:52]}  Nc5 {[%clk 0:02:49]} 17. Qe2 {[%clk 0:02:50]}  Qc7 {[%clk 0:02:45]} 18. Nd5 {[%clk 0:02:33]}  Bxd5 {[%clk 0:02:44]} 19. cxd5 {[%clk 0:02:24]}  Qd7 {[%clk 0:02:38]} 20. h4 {[%clk 0:02:19]}  b5 {[%clk 0:02:37]} 21. h5 {[%clk 0:02:17]}  e5 {[%clk 0:02:22]} 22. dxe6 {[%clk 0:02:06]}  Qxe6 {[%clk 0:02:17]} 23. Bf4 {[%clk 0:01:44]}  Rcd8 {[%clk 0:02:09]} 24. Rd5 {[%clk 0:01:15]}  Rfe8 {[%clk 0:02:04]} 25. Rcd1 {[%clk 0:01:14]}  Nxe4 {[%clk 0:02:03]} 26. Qxe4 {[%clk 0:01:13]}  Qxe4 {[%clk 0:02:02]} 27. Bxe4 {[%clk 0:01:14]}  Rxe4 {[%clk 0:02:01]} 28. Rxd6 {[%clk 0:01:14]}  Ra8 {[%clk 0:01:27]} 29. Rxa6 {[%clk 0:01:08]}  Rae8 {[%clk 0:01:19]} 30. Rd7 {[%clk 0:00:55]}  Bd4 {[%clk 0:00:33]} 31. Rad6 {[%clk 0:00:51]}  Be5 {[%clk 0:00:17]} 32. Bxe5 {[%clk 0:00:51]}  R4xe5 {[%clk 0:00:18]} 33. h6 {[%clk 0:00:51]}  Kf8 {[%clk 0:00:17]} 34. Rb7 {[%clk 0:00:47]}  Rh5 {[%clk 0:00:15]} 35. Rdd7 {[%clk 0:00:37]}  Rf5 {[%clk 0:00:15]} 36. Kg2 {[%clk 0:00:30]}  g5 {[%clk 0:00:13]} 37. g4 {[%clk 0:00:24]}  Rf4 {[%clk 0:00:13]} 38. Kg3 {[%clk 0:00:23]}  Rf6 {[%clk 0:00:13]} 39. Rxb5 {[%clk 0:00:20]}  Rxh6 {[%clk 0:00:13]} 40. Rxg5 {[%clk 0:00:20]}  Ra6 {[%clk 0:00:11]} 41. a4 {[%clk 0:00:19]}  Rb8 {[%clk 0:00:10]} 42. Rb5 {[%clk 0:00:18]}  Rxb5 {[%clk 0:00:08]} 43. axb5 {[%clk 0:00:19]}  Rb6 {[%clk 0:00:08]} 44. Rd5 {[%clk 0:00:19]}  Ke7 {[%clk 0:00:09]} 45. Kf4 {[%clk 0:00:20]}  Ke6 {[%clk 0:00:09]} 46. Ke4 {[%clk 0:00:20]}  Ke7 {[%clk 0:00:07]} 47. f4 {[%clk 0:00:13]}  Rg6 {[%clk 0:00:06]} 48. g5 {[%clk 0:00:14]}  Re6+ {[%clk 0:00:05]} 49. Re5 {[%clk 0:00:14]}  Kd6 {[%clk 0:00:03]} 50. Rxe6+ {[%clk 0:00:14]} 1-0

[Event "January 2 Late 2024"]
[Site "https://www.chess.com"]
[Date "2024.01.02"]
[Round "1"]
[White "Hernando Rodrigo, Julio Antonio"]
[Black "Kamsky, Gata"]
[Result "0-1"]
[Board "36"]
[TimeControl "180+1"]
[WhiteFideId "2208350"]
[BlackFideId "2000024"]
[WhiteElo "2494"]
[BlackElo "2954"]
[WhiteTeam "ESP"]
[BlackTeam "USA"]
[WhiteClock "0:01:07"]
[BlackClock "0:02:26"]

1. d4 {[%clk 0:02:56]}  f5 {[%clk 0:02:59]} 2. Nf3 {[%clk 0:02:55]}  Nf6 {[%clk 0:02:56]} 3. c4 {[%clk 0:02:55]}  g6 {[%clk 0:02:54]} 4. g3 {[%clk 0:02:55]}  Bg7 {[%clk 0:02:55]} 5. Bg2 {[%clk 0:02:55]}  d6 {[%clk 0:02:55]} 6. O-O {[%clk 0:02:55]}  c6 {[%clk 0:02:55]} 7. Nc3 {[%clk 0:02:54]}  O-O {[%clk 0:02:51]} 8. d5 {[%clk 0:02:49]}  e5 {[%clk 0:02:50]} 9. dxe6 {[%clk 0:02:47]}  Bxe6 {[%clk 0:02:50]} 10. b3 {[%clk 0:02:32]}  Na6 {[%clk 0:02:46]} 11. Ng5 {[%clk 0:02:26]}  Bc8 {[%clk 0:02:45]} 12. Ba3 {[%clk 0:02:15]}  Ne8 {[%clk 0:02:37]} 13. Bd5+ {[%clk 0:01:39]}  cxd5 {[%clk 0:02:34]} 14. Qxd5+ {[%clk 0:01:38]}  Kh8 {[%clk 0:02:33]} 15. Nf7+ {[%clk 0:01:38]}  Rxf7 {[%clk 0:02:33]} 16. Qxf7 {[%clk 0:01:07]}  Nac7 {[%clk 0:02:26]} 0-1

[Event "January 2 Late 2024"]
[Site "https://www.chess.com"]
[Date "2024.01.02"]
[Round "1"]
[White "Yoo, Christopher Woojin"]
[Black "Olsson, Linus"]
[Result "1-0"]
[Board "37"]
[TimeControl "180+1"]
[WhiteFideId "30909694"]
[BlackFideId "1706098"]
[WhiteElo "2943"]
[BlackElo "2492"]
[WhiteTeam "USA"]
[BlackTeam "SWE"]
[WhiteClock "0:01:19"]
[BlackClock "0:00:13"]

1. Nf3 {[%clk 0:03:00]}  g6 {[%clk 0:02:52]} 2. d4 {[%clk 0:02:59]}  Bg7 {[%clk 0:02:52]} 3. e4 {[%clk 0:03:00]}  d6 {[%clk 0:02:47]} 4. Bc4 {[%clk 0:02:58]}  Nf6 {[%clk 0:02:47]} 5. Nc3 {[%clk 0:02:48]}  O-O {[%clk 0:02:46]} 6. h3 {[%clk 0:02:30]}  c6 {[%clk 0:02:45]} 7. e5 {[%clk 0:02:26]}  dxe5 {[%clk 0:02:44]} 8. Nxe5 {[%clk 0:02:27]}  Nbd7 {[%clk 0:02:35]} 9. O-O {[%clk 0:02:20]}  Nb6 {[%clk 0:02:23]} 10. Bb3 {[%clk 0:02:18]}  Nbd5 {[%clk 0:02:21]} 11. Na4 {[%clk 0:02:13]}  Qc7 {[%clk 0:02:09]} 12. Re1 {[%clk 0:02:14]}  b5 {[%clk 0:01:47]} 13. Nc5 {[%clk 0:02:12]}  a5 {[%clk 0:01:44]} 14. a4 {[%clk 0:02:12]}  b4 {[%clk 0:01:37]} 15. Qf3 {[%clk 0:02:12]}  Bb7 {[%clk 0:01:22]} 16. Bg5 {[%clk 0:02:06]}  Rad8 {[%clk 0:01:22]} 17. Re2 {[%clk 0:02:03]}  Bc8 {[%clk 0:01:07]} 18. Rae1 {[%clk 0:02:02]}  e6 {[%clk 0:01:04]} 19. Bxd5 {[%clk 0:01:59]}  Nxd5 {[%clk 0:01:01]} 20. Bxd8 {[%clk 0:01:55]}  Rxd8 {[%clk 0:01:01]} 21. h4 {[%clk 0:01:56]}  h5 {[%clk 0:00:55]} 22. g3 {[%clk 0:01:52]}  Rf8 {[%clk 0:00:50]} 23. c4 {[%clk 0:01:49]}  bxc3 {[%clk 0:00:49]} 24. bxc3 {[%clk 0:01:49]}  Rd8 {[%clk 0:00:42]} 25. Rb1 {[%clk 0:01:47]}  Rf8 {[%clk 0:00:41]} 26. Nc4 {[%clk 0:01:38]}  Ne7 {[%clk 0:00:35]} 27. Reb2 {[%clk 0:01:33]}  Nd5 {[%clk 0:00:30]} 28. Rb8 {[%clk 0:01:32]}  Kh7 {[%clk 0:00:25]} 29. Ra8 {[%clk 0:01:30]}  Ne7 {[%clk 0:00:20]} 30. Nb6 {[%clk 0:01:21]}  Kg8 {[%clk 0:00:19]} 31. Nxc8 {[%clk 0:01:20]}  Nxc8 {[%clk 0:00:20]} 32. Rb7 {[%clk 0:01:19]}  Qd6 {[%clk 0:00:13]} 33. Rd7 {[%clk 0:01:19]} 1-0

[Event "January 2 Late 2024"]
[Site "https://www.chess.com"]
[Date "2024.01.02"]
[Round "1"]
[White "Gutierrez Olivares, Daniel"]
[Black "Kovalev, Vladislav"]
[Result "0-1"]
[Board "40"]
[TimeControl "180+1"]
[WhiteFideId "2264005"]
[BlackFideId "13504398"]
[WhiteElo "2488"]
[BlackElo "2933"]
[WhiteTeam "ESP"]
[BlackTeam "FID"]
[WhiteClock "0:00:00"]
[BlackClock "0:00:28"]

1. Nf3 {[%clk 0:02:58]}  Nf6 {[%clk 0:03:00]} 2. g3 {[%clk 0:02:59]}  d5 {[%clk 0:02:59]} 3. c4 {[%clk 0:02:59]}  e6 {[%clk 0:02:58]} 4. Bg2 {[%clk 0:02:58]}  dxc4 {[%clk 0:02:52]} 5. Qa4+ {[%clk 0:02:58]}  Nbd7 {[%clk 0:02:52]} 6. Qxc4 {[%clk 0:02:58]}  a6 {[%clk 0:02:52]} 7. Qc2 {[%clk 0:02:59]}  c5 {[%clk 0:02:45]} 8. O-O {[%clk 0:02:53]}  Be7 {[%clk 0:02:45]} 9. d3 {[%clk 0:02:49]}  O-O {[%clk 0:02:44]} 10. b3 {[%clk 0:02:47]}  Rb8 {[%clk 0:02:42]} 11. Bb2 {[%clk 0:02:46]}  b5 {[%clk 0:02:42]} 12. Nbd2 {[%clk 0:02:46]}  Bb7 {[%clk 0:02:42]} 13. Rfd1 {[%clk 0:02:43]}  Qb6 {[%clk 0:02:43]} 14. e4 {[%clk 0:02:41]}  Rfd8 {[%clk 0:02:42]} 15. Rac1 {[%clk 0:02:41]}  Rbc8 {[%clk 0:02:39]} 16. h3 {[%clk 0:02:41]}  Nb8 {[%clk 0:02:28]} 17. Ne5 {[%clk 0:02:36]}  Nfd7 {[%clk 0:02:23]} 18. Ndf3 {[%clk 0:02:26]}  Nxe5 {[%clk 0:02:22]} 19. Nxe5 {[%clk 0:02:25]}  f6 {[%clk 0:02:11]} 20. Nf3 {[%clk 0:02:19]}  Nc6 {[%clk 0:01:59]} 21. a3 {[%clk 0:02:18]}  e5 {[%clk 0:01:57]} 22. h4 {[%clk 0:02:16]}  Rc7 {[%clk 0:01:45]} 23. Bh3 {[%clk 0:02:12]}  Bc8 {[%clk 0:01:45]} 24. Bxc8 {[%clk 0:02:08]}  Rcxc8 {[%clk 0:01:40]} 25. h5 {[%clk 0:02:07]}  Qb7 {[%clk 0:01:36]} 26. Nh4 {[%clk 0:02:03]}  Qd7 {[%clk 0:01:36]} 27. Nf5 {[%clk 0:01:58]}  Bf8 {[%clk 0:01:36]} 28. Kg2 {[%clk 0:01:52]}  Qf7 {[%clk 0:01:14]} 29. Rh1 {[%clk 0:01:45]}  Qe6 {[%clk 0:01:10]} 30. Rb1 {[%clk 0:01:19]}  Nd4 {[%clk 0:01:07]} 31. Bxd4 {[%clk 0:01:18]}  cxd4 {[%clk 0:01:07]} 32. Qe2 {[%clk 0:01:15]}  Rc3 {[%clk 0:01:04]} 33. Qg4 {[%clk 0:00:33]}  Kh8 {[%clk 0:01:03]} 34. Qf3 {[%clk 0:00:28]}  Bxa3 {[%clk 0:00:59]} 35. g4 {[%clk 0:00:22]}  h6 {[%clk 0:00:34]} 36. Nh4 {[%clk 0:00:13]}  Rdc8 {[%clk 0:00:34]} 37. Ng6+ {[%clk 0:00:13]}  Kg8 {[%clk 0:00:34]} 38. Rh3 {[%clk 0:00:10]}  b4 {[%clk 0:00:34]} 39. Rg3 {[%clk 0:00:08]}  a5 {[%clk 0:00:33]} 40. Qf5 {[%clk 0:00:08]}  Qxf5 {[%clk 0:00:33]} 41. Ne7+ {[%clk 0:00:07]}  Kf7 {[%clk 0:00:33]} 42. Nxf5 {[%clk 0:00:07]}  R8c6 {[%clk 0:00:32]} 43. Rh3 {[%clk 0:00:03]}  a4 {[%clk 0:00:28]} 44. bxa4 {[%clk 0:00:03]}  b3 {[%clk 0:00:29]} 45. f4 {[%clk 0:00:02]}  b2 {[%clk 0:00:27]} 46. Rhh1 {[%clk 0:00:01]}  Rc1 {[%clk 0:00:27]} 47. fxe5 {[%clk 0:00:00]}  fxe5 {[%clk 0:00:28]} 0-1

[Event "January 2 Late 2024"]
[Site "https://www.chess.com"]
[Date "2024.01.02"]
[Round "1"]
[White "Kotyk, Michael"]
[Black "Tari, Aryan"]
[Result "0-1"]
[Board "42"]
[TimeControl "180+1"]
[WhiteFideId "16214501"]
[BlackFideId "1510045"]
[WhiteElo "2484"]
[BlackElo "2919"]
[WhiteTeam "GER"]
[BlackTeam "NOR"]
[WhiteClock "0:00:42"]
[BlackClock "0:01:49"]

1. d4 {[%clk 0:03:00]}  d5 {[%clk 0:02:54]} 2. c4 {[%clk 0:03:01]}  e6 {[%clk 0:02:53]} 3. Nc3 {[%clk 0:03:01]}  c5 {[%clk 0:02:53]} 4. cxd5 {[%clk 0:02:59]}  cxd4 {[%clk 0:02:52]} 5. Qxd4 {[%clk 0:02:59]}  Nc6 {[%clk 0:02:52]} 6. Qa4 {[%clk 0:02:56]}  exd5 {[%clk 0:02:52]} 7. Nf3 {[%clk 0:02:56]}  Nf6 {[%clk 0:02:52]} 8. e3 {[%clk 0:02:52]}  Bb4 {[%clk 0:02:48]} 9. Bd2 {[%clk 0:02:48]}  O-O {[%clk 0:02:48]} 10. Be2 {[%clk 0:02:25]}  Re8 {[%clk 0:02:43]} 11. a3 {[%clk 0:02:14]}  Bxc3 {[%clk 0:02:33]} 12. Bxc3 {[%clk 0:02:15]}  Ne4 {[%clk 0:02:33]} 13. Bd4 {[%clk 0:02:04]}  Bd7 {[%clk 0:02:29]} 14. Qd1 {[%clk 0:01:56]}  Bg4 {[%clk 0:02:27]} 15. O-O {[%clk 0:01:55]}  Qd6 {[%clk 0:02:25]} 16. h3 {[%clk 0:01:52]}  Bh5 {[%clk 0:02:22]} 17. Rc1 {[%clk 0:01:44]}  Rac8 {[%clk 0:02:22]} 18. b4 {[%clk 0:01:23]}  a6 {[%clk 0:02:21]} 19. Bb2 {[%clk 0:01:22]}  Bg6 {[%clk 0:02:14]} 20. Nd4 {[%clk 0:01:20]}  Ne5 {[%clk 0:02:14]} 21. f4 {[%clk 0:01:14]}  Nc4 {[%clk 0:02:11]} 22. Bxc4 {[%clk 0:01:13]}  dxc4 {[%clk 0:02:07]} 23. f5 {[%clk 0:01:10]}  c3 {[%clk 0:02:07]} 24. Ba1 {[%clk 0:01:06]}  Qg3 {[%clk 0:02:06]} 25. fxg6 {[%clk 0:00:57]}  Qxe3+ {[%clk 0:02:06]} 26. Kh2 {[%clk 0:00:57]}  Qg3+ {[%clk 0:02:01]} 27. Kg1 {[%clk 0:00:54]}  Qe3+ {[%clk 0:01:57]} 28. Kh2 {[%clk 0:00:54]}  hxg6 {[%clk 0:01:58]} 29. Nf3 {[%clk 0:00:51]}  Qf4+ {[%clk 0:01:57]} 30. Kg1 {[%clk 0:00:50]}  Ng3 {[%clk 0:01:57]} 31. Re1 {[%clk 0:00:49]}  Rxe1+ {[%clk 0:01:51]} 32. Nxe1 {[%clk 0:00:42]}  Qxc1 {[%clk 0:01:49]} 0-1

[Event "January 2 Late 2024"]
[Site "https://www.chess.com"]
[Date "2024.01.02"]
[Round "1"]
[White "Livaic, Leon"]
[Black "Huang, Youhe"]
[Result "1-0"]
[Board "49"]
[TimeControl "180+1"]
[WhiteFideId "14531534"]
[BlackFideId "2629445"]
[WhiteElo "2892"]
[BlackElo "2476"]
[WhiteTeam "CRO"]
[BlackTeam "CAN"]
[WhiteClock "0:00:43"]
[BlackClock "0:00:21"]

1. d4 {[%clk 0:03:00]}  d5 {[%clk 0:02:53]} 2. c4 {[%clk 0:03:01]}  e6 {[%clk 0:02:54]} 3. Nf3 {[%clk 0:03:00]}  c6 {[%clk 0:02:51]} 4. Nc3 {[%clk 0:02:56]}  dxc4 {[%clk 0:02:08]} 5. a4 {[%clk 0:02:52]}  Bb4 {[%clk 0:02:07]} 6. e3 {[%clk 0:02:45]}  b5 {[%clk 0:02:07]} 7. Bd2 {[%clk 0:02:45]}  a5 {[%clk 0:02:07]} 8. axb5 {[%clk 0:02:40]}  Bxc3 {[%clk 0:02:07]} 9. Bxc3 {[%clk 0:02:40]}  cxb5 {[%clk 0:02:08]} 10. b3 {[%clk 0:02:41]}  Bb7 {[%clk 0:02:07]} 11. bxc4 {[%clk 0:02:38]}  b4 {[%clk 0:02:05]} 12. Bb2 {[%clk 0:02:39]}  Nf6 {[%clk 0:02:04]} 13. Bd3 {[%clk 0:02:39]}  O-O {[%clk 0:02:01]} 14. O-O {[%clk 0:02:38]}  Nbd7 {[%clk 0:01:59]} 15. Re1 {[%clk 0:02:38]}  Qc7 {[%clk 0:01:56]} 16. e4 {[%clk 0:02:35]}  e5 {[%clk 0:01:56]} 17. c5 {[%clk 0:02:35]}  Rfd8 {[%clk 0:01:45]} 18. Rc1 {[%clk 0:02:30]}  exd4 {[%clk 0:01:44]} 19. c6 {[%clk 0:02:20]}  Bxc6 {[%clk 0:01:41]} 20. Bb5 {[%clk 0:01:51]}  Nb8 {[%clk 0:01:21]} 21. e5 {[%clk 0:01:39]}  Ng4 {[%clk 0:01:12]} 22. h3 {[%clk 0:01:29]}  Nh6 {[%clk 0:00:57]} 23. e6 {[%clk 0:01:24]}  Qb6 {[%clk 0:00:39]} 24. e7 {[%clk 0:00:51]}  Re8 {[%clk 0:00:39]} 25. Bd3 {[%clk 0:00:51]}  Qb7 {[%clk 0:00:35]} 26. Ng5 {[%clk 0:00:45]}  Rxe7 {[%clk 0:00:28]} 27. Bxh7+ {[%clk 0:00:43]}  Kh8 {[%clk 0:00:28]} 28. Qxd4 {[%clk 0:00:43]}  Rxe1+ {[%clk 0:00:21]} 29. Rxe1 {[%clk 0:00:43]}  Nd7 {[%clk 0:00:21]} 30. Qxg7# {[%clk 0:00:43]} 1-0

[Event "January 2 Late 2024"]
[Site "https://www.chess.com"]
[Date "2024.01.02"]
[Round "1"]
[White "Kazmaier, Daniel"]
[Black "Rustemov, Alexander"]
[Result "0-1"]
[Board "50"]
[TimeControl "180+1"]
[WhiteFideId "2606089"]
[BlackFideId "4119002"]
[WhiteElo "2471"]
[BlackElo "2868"]
[WhiteTeam "CAN"]
[BlackTeam "RUS"]
[WhiteClock "0:00:14"]
[BlackClock "0:00:21"]

1. d4 {[%clk 0:02:57]}  g6 {[%clk 0:02:58]} 2. Nf3 {[%clk 0:02:57]}  Bg7 {[%clk 0:02:59]} 3. Bf4 {[%clk 0:02:57]}  c5 {[%clk 0:02:59]} 4. c3 {[%clk 0:02:54]}  Qb6 {[%clk 0:02:58]} 5. Qb3 {[%clk 0:02:54]}  d6 {[%clk 0:02:57]} 6. Qxb6 {[%clk 0:02:52]}  axb6 {[%clk 0:02:57]} 7. e3 {[%clk 0:02:52]}  Be6 {[%clk 0:02:52]} 8. a3 {[%clk 0:02:48]}  Nf6 {[%clk 0:02:50]} 9. h3 {[%clk 0:02:45]}  O-O {[%clk 0:02:47]} 10. Nbd2 {[%clk 0:02:44]}  Nd5 {[%clk 0:02:33]} 11. Bg3 {[%clk 0:02:40]}  h6 {[%clk 0:02:30]} 12. Bc4 {[%clk 0:02:31]}  Nc7 {[%clk 0:02:25]} 13. O-O {[%clk 0:02:25]}  Bxc4 {[%clk 0:02:19]} 14. Nxc4 {[%clk 0:02:26]}  Nd7 {[%clk 0:02:12]} 15. Rad1 {[%clk 0:02:22]}  b5 {[%clk 0:02:11]} 16. Ncd2 {[%clk 0:01:56]}  Rfc8 {[%clk 0:02:10]} 17. dxc5 {[%clk 0:01:54]}  Nxc5 {[%clk 0:02:06]} 18. Nd4 {[%clk 0:01:50]}  Na4 {[%clk 0:02:06]} 19. Rb1 {[%clk 0:01:47]}  Bxd4 {[%clk 0:02:03]} 20. exd4 {[%clk 0:01:47]}  Nd5 {[%clk 0:02:04]} 21. Rfe1 {[%clk 0:01:42]}  Rc6 {[%clk 0:01:59]} 22. Nb3 {[%clk 0:01:29]}  Nab6 {[%clk 0:01:56]} 23. Re2 {[%clk 0:01:26]}  Nc4 {[%clk 0:01:56]} 24. Nd2 {[%clk 0:01:25]}  e6 {[%clk 0:01:44]} 25. Kf1 {[%clk 0:01:22]}  Kf8 {[%clk 0:01:26]} 26. Ne4 {[%clk 0:01:18]}  Ke7 {[%clk 0:01:25]} 27. Bh4+ {[%clk 0:01:18]}  g5 {[%clk 0:01:24]} 28. Bg3 {[%clk 0:01:19]}  f5 {[%clk 0:01:23]} 29. Nd2 {[%clk 0:01:15]}  Kf6 {[%clk 0:01:20]} 30. Nxc4 {[%clk 0:01:04]}  bxc4 {[%clk 0:01:19]} 31. Rbe1 {[%clk 0:01:05]}  Re8 {[%clk 0:01:18]} 32. h4 {[%clk 0:01:01]}  f4 {[%clk 0:01:16]} 33. hxg5+ {[%clk 0:01:01]}  hxg5 {[%clk 0:01:15]} 34. Bh2 {[%clk 0:01:02]}  Kf5 {[%clk 0:01:09]} 35. g3 {[%clk 0:00:58]}  e5 {[%clk 0:01:04]} 36. gxf4 {[%clk 0:00:56]}  gxf4 {[%clk 0:01:02]} 37. dxe5 {[%clk 0:00:56]}  dxe5 {[%clk 0:01:01]} 38. Rd1 {[%clk 0:00:47]}  Nf6 {[%clk 0:01:01]} 39. Red2 {[%clk 0:00:43]}  Ng4 {[%clk 0:00:59]} 40. Bg1 {[%clk 0:00:43]}  Re7 {[%clk 0:00:49]} 41. f3 {[%clk 0:00:42]}  Nf6 {[%clk 0:00:47]} 42. Rd8 {[%clk 0:00:41]}  Rcc7 {[%clk 0:00:38]} 43. Bb6 {[%clk 0:00:37]}  Rcd7 {[%clk 0:00:39]} 44. Bc5 {[%clk 0:00:38]}  Rxd1+ {[%clk 0:00:38]} 45. Rxd1 {[%clk 0:00:36]}  Rd7 {[%clk 0:00:38]} 46. Re1 {[%clk 0:00:29]}  Rd2 {[%clk 0:00:35]} 47. Re2 {[%clk 0:00:26]}  Rxe2 {[%clk 0:00:34]} 48. Kxe2 {[%clk 0:00:27]}  b5 {[%clk 0:00:34]} 49. Kd2 {[%clk 0:00:25]}  e4 {[%clk 0:00:33]} 50. Bd4 {[%clk 0:00:24]}  exf3 {[%clk 0:00:28]} 51. Bxf6 {[%clk 0:00:14]}  Kxf6 {[%clk 0:00:28]} 52. Ke1 {[%clk 0:00:15]}  Ke5 {[%clk 0:00:28]} 53. Kf1 {[%clk 0:00:14]}  Ke4 {[%clk 0:00:25]} 54. Kf2 {[%clk 0:00:15]}  Kd3 {[%clk 0:00:25]} 55. Kxf3 {[%clk 0:00:16]}  Kc2 {[%clk 0:00:26]} 56. b4 {[%clk 0:00:14]}  Kxc3 {[%clk 0:00:21]} 57. a4 {[%clk 0:00:15]}  Kxb4 {[%clk 0:00:21]} 58. axb5 {[%clk 0:00:15]}  Kxb5 {[%clk 0:00:20]} 59. Kxf4 {[%clk 0:00:15]}  Kb4 {[%clk 0:00:20]} 60. Ke3 {[%clk 0:00:16]}  Kb3 {[%clk 0:00:20]} 61. Kd2 {[%clk 0:00:14]}  Kb2 {[%clk 0:00:21]} 0-1